fUST/lending_fUST_20250202
["ID","MTS","AMOUNT","RATE_DAILY","PERIOD"]
[351212250,1738433245182,-500.0,0.00016438,2]
[351212251,1738433245203,-500.0,0.00016438,2]
[351212252,1738433245224,-500.0,0.00016438,2]
[351212253,1738433245244,-209.96,0.00016438,2]
[351212254,1738433245265,-500.0,0.00016438,2]
[351212255,1738433245285,-500.0,0.00016438,2]
[351212256,1738433245306,-500.0,0.00016438,2]
[351212257,1738433245327,-500.0,0.00016438,2]
[351212258,1738433245348,-500.0,0.00016438,2]
[351212259,1738433245369,-500.0,0.00016438,2]
[351212260,1738433245391,-500.0,0.00016438,2]
[351212261,1738433245413,-500.0,0.00016438,2]
[351212262,1738433245541,-183.33,0.00016438,2]
[351212263,1738433245563,-246.78418213,0.00016438,2]
[351212264,1738433245584,-500.0,0.00016438,2]
[351212265,1738433245604,-230.18554724,0.00016438,2]
[351212266,1738433245626,-500.0,0.00016438,2]
[351212267,1738433245648,-500.57867955,0.00016438,2]
[351212268,1738433245669,-500.0,0.00016438,2]
[351212269,1738433245690,-500.0,0.00016438,2]
[351212270,1738433245711,-500.0,0.00016438,2]
[351212271,1738433245731,-500.0,0.00016438,2]
[351212272,1738433245754,-500.0,0.00016438,2]
[351212273,1738433245774,-500.0,0.00016438,2]
[351212274,1738433245795,-500.0,0.00016438,2]
[351212275,1738433245816,-500.0,0.00016438,2]
[351212276,1738433245839,-500.0,0.00016438,2]
[351212277,1738433245860,-500.0,0.00016438,2]
[351212278,1738433245883,-500.0,0.00016438,2]
[351212279,1738433245903,-500.0,0.00016438,2]
[351212280,1738433245926,-500.0,0.00016438,2]
[351212281,1738433245946,-500.0,0.00016438,2]
[351212282,1738433245966,-500.0,0.00016438,2]
[351212283,1738433245986,-500.0,0.00016438,2]
[351212284,1738433246007,-500.0,0.00016438,2]
[351212285,1738433246030,-500.0,0.00016438,2]
[351212286,1738433246050,-500.0,0.00016438,2]
[351212287,1738433246072,-500.0,0.00016438,2]
[351212288,1738433246092,-500.0,0.00016438,2]
[351212289,1738433246113,-500.0,0.00016438,2]
[351212290,1738433246134,-291.43065656,0.00016438,2]
[351212291,1738433246156,-500.0,0.00016438,2]
[351212292,1738433246177,-500.0,0.00016438,2]
[351212293,1738433246198,-500.0,0.00016438,2]
[351212294,1738433246220,-500.0,0.00016438,2]
[351212295,1738433246241,-500.0,0.00016438,2]
[351212296,1738433246261,-436.60281066,0.00016438,2]
[351212297,1738433246282,-500.0,0.00016438,2]
[351212298,1738433246304,-908.38,0.00016438,2]
[351212299,1738433246324,-500.38986083,0.00016438,2]
[351212300,1738433246345,-500.0,0.00016438,2]
[351212301,1738433246366,-718.85,0.00016438,2]
[351212302,1738433246386,-552.3811511,0.00016438,2]
[351212303,1738433246406,-500.0,0.00016438,2]
[351212304,1738433246425,-500.0,0.00016438,2]
[351212305,1738433246446,-526.61,0.00016438,2]
[351212306,1738433246468,-500.0,0.00016438,2]
[351212307,1738433246490,-2679.99,0.00016438,2]
[351212308,1738433246512,-500.0,0.00016438,2]
[351212309,1738433246533,-500.0,0.00016438,2]
[351212310,1738433246556,-5134.61,0.00016438,2]
[351212311,1738433246576,-500.0,0.00016438,2]
[351212312,1738433246597,-500.0,0.00016438,2]
[351212313,1738433246618,-500.0,0.00016438,2]
[351212314,1738433246640,-500.0,0.00016438,2]
[351212315,1738433246660,-500.0,0.00016438,2]
[351212316,1738433246680,-500.0,0.00016438,2]
[351212317,1738433246701,-500.0,0.00016438,2]
[351212318,1738433246723,-500.0,0.00016438,2]
[351212319,1738433246743,-500.0,0.00016438,2]
[351212320,1738433246766,-855.55,0.00016438,2]
[351212321,1738433246787,-500.0,0.00016438,2]
[351212322,1738433246808,-500.0,0.00016438,2]
[351212323,1738433246829,-500.0,0.00016438,2]
[351212324,1738433246856,-1364.78,0.00016438,2]
[351212325,1738433246877,-500.0,0.00016438,2]
[351212326,1738433246902,-578.38,0.00016438,2]
[351212327,1738433246924,-500.0,0.00016438,2]
[351212328,1738433246947,-500.0,0.00016438,2]
[351212329,1738433246968,-1000.0,0.00016438,7]
[351212330,1738433246990,-525.84,0.00016438,2]
[351212331,1738433247012,-511.33,0.00016438,2]
[351212332,1738433247034,-500.0,0.00016438,2]
[351212333,1738433247056,-562.29,0.00016438,2]
[351212334,1738433247079,-671.38,0.00016438,2]
[351212335,1738433247100,-500.0,0.00016438,2]
[351212336,1738433247121,-500.0,0.00016438,2]
[351212337,1738433247145,-1019.16,0.00016438,2]
[351212338,1738433247167,-481.10664828,0.00016438,2]
[351212339,1738433247187,-673.43,0.00016438,2]
[351212340,1738433247210,-4962.25,0.00016438,2]
[351212341,1738433247231,-501.6811376,0.00016438,2]
[351212342,1738433247251,-500.0,0.00016438,2]
[351212343,1738433247273,-500.0,0.00016438,2]
[351212344,1738433247295,-500.0,0.00016438,2]
[351212345,1738433247317,-500.0,0.00016438,2]
[351212346,1738433247339,-500.0,0.00016438,2]
[351212347,1738433247364,-500.0,0.00016438,2]
[351212348,1738433247386,-500.0,0.00016438,2]
[351212349,1738433247408,-500.0,0.00016438,2]
[351212350,1738433247429,-164.32570475,0.00016438,2]
[351212351,1738433247452,-530.36423608,0.00016438,2]
[351212352,1738433247474,-500.0,0.00016438,2]
[351212353,1738433247496,-500.0,0.00016438,2]
[351212354,1738433247518,-516.88,0.00016438,2]
[351212355,1738433247541,-590.27,0.00016438,2]
[351212356,1738433247562,-500.0,0.00016438,2]
[351212357,1738433247586,-9928.22316088,0.00016438,2]
[351212383,1738433432905,-512.73835823,0.00015734,2]
[351212384,1738433432916,-300.0,0.00016437,2]
[351212386,1738433432925,-500.0,0.00016438,2]
[351212387,1738433432936,-500.0,0.00016438,2]
[351212388,1738433432946,-4049.7,0.00016438,2]
[351212389,1738433432955,-500.0,0.00016438,2]
[351212390,1738433432965,-500.0,0.00016438,2]
[351212391,1738433432975,-500.0,0.00016438,2]
[351212392,1738433432985,-581.22211367,0.00016438,2]
[351212393,1738433432994,-500.0,0.00016438,2]
[351212394,1738433433004,-500.0,0.00016438,2]
[351212395,1738433433014,-500.0,0.00016438,2]
[351212396,1738433433023,-500.0,0.00016438,2]
[351212397,1738433433034,-500.0,0.00016438,2]
[351212398,1738433433044,-500.0,0.00016438,2]
[351212399,1738433433054,-500.0,0.00016438,2]
[351212400,1738433433063,-500.0,0.00016438,2]
[351212401,1738433433073,-500.0,0.00016438,2]
[351212402,1738433433083,-1307.47,0.00016438,2]
[351212403,1738433433092,-425.30040088,0.00016438,2]
[351212404,1738433433102,-500.0,0.00016438,2]
[351212405,1738433433111,-507.99029297,0.00016438,2]
[351212406,1738433433121,-500.0,0.00016438,2]
[351212407,1738433433131,-500.0,0.00016438,2]
[351212408,1738433433141,-500.0,0.00016438,2]
[351212409,1738433433150,-500.0,0.00016438,2]
[351212410,1738433433160,-500.0,0.00016438,2]
[351212411,1738433433170,-500.0,0.00016438,2]
[351212412,1738433433180,-500.0,0.00016438,2]
[351212413,1738433433189,-500.0,0.00016438,2]
[351212414,1738433433199,-500.0,0.00016438,2]
[351212415,1738433433209,-688.9,0.00016438,2]
[351212416,1738433433219,-500.0,0.00016438,2]
[351212417,1738433433229,-500.0,0.00016438,2]
[351212418,1738433433238,-500.0,0.00016438,2]
[351212419,1738433433248,-500.0,0.00016438,2]
[351212420,1738433433258,-500.0,0.00016438,2]
[351212421,1738433433268,-2568.32,0.00016438,2]
[351212422,1738433433278,-229.79198627,0.00016438,2]
[351212423,1738433433290,-500.0,0.00016438,2]
[351212424,1738433433300,-870.53,0.00016438,2]
[351212425,1738433433309,-504.67,0.00016438,2]
[351212426,1738433433319,-643.41,0.00016438,2]
[351212427,1738433433329,-500.0,0.00016438,2]
[351212428,1738433433339,-500.0,0.00016438,2]
[351212429,1738433433348,-500.0,0.00016438,2]
[351212430,1738433433358,-500.0,0.00016438,2]
[351212431,1738433433368,-500.0,0.00016438,2]
[351212432,1738433433378,-1307.92,0.00016438,2]
[351212433,1738433433388,-486.90027359,0.00016438,2]
[351212434,1738433433398,-500.0,0.00016438,2]
[351212435,1738433433407,-4920.67,0.00016438,2]
[351212436,1738433433416,-500.0,0.00016438,2]
[351212437,1738433433426,-500.0,0.00016438,2]
[351212438,1738433433435,-500.0,0.00016438,2]
[351212439,1738433433445,-554.28,0.00016438,2]
[351212440,1738433433454,-500.0,0.00016438,2]
[351212441,1738433433463,-500.0,0.00016438,2]
[351212442,1738433433473,-500.0,0.00016438,2]
[351212443,1738433433483,-500.0,0.00016438,2]
[351212444,1738433433493,-500.0,0.00016438,2]
[351212445,1738433433502,-819.9,0.00016438,2]
[351212446,1738433433512,-500.0,0.00016438,2]
[351212447,1738433433523,-259.21442083,0.00016438,2]
[351212448,1738433433534,-976.69,0.00016438,2]
[351212449,1738433433544,-14359.31,0.00016438,2]
[351212450,1738433433554,-616.01,0.00016438,2]
[351212451,1738433433564,-500.0,0.00016438,2]
[351212452,1738433433574,-500.0,0.00016438,7]
[351212453,1738433433583,-4755.49,0.00016438,2]
[351212454,1738433433594,-500.0,0.00016438,2]
[351212455,1738433433604,-503.93,0.00016438,2]
[351212456,1738433433615,-500.0,0.00016438,2]
[351212457,1738433433624,-661.59,0.00016438,2]
[351212458,1738433433635,-500.0,0.00016438,2]
[351212459,1738433433644,-500.0,0.00016438,2]
[351212460,1738433433654,-596.48,0.00016438,2]
[351212461,1738433433663,-500.0,0.00016438,2]
[351212462,1738433433672,-500.0,0.00016438,2]
[351212463,1738433433683,-500.0,0.00016438,2]
[351212464,1738433433692,-500.0,0.00016438,2]
[351212465,1738433433702,-500.0,0.00016438,2]
[351212466,1738433433711,-500.0,0.00016438,2]
[351212467,1738433433720,-500.0,0.00016438,2]
[351212468,1738433433731,-928.36,0.00016438,2]
[351212469,1738433433740,-500.0,0.00016573,2]
[351212470,1738433433750,-500.0,0.00016573,2]
[351212471,1738433433761,-245.12089441,0.00016573,2]
[351212472,1738433433771,-500.0,0.00016573,2]
[351212473,1738433433781,-445.42346254,0.00016573,2]
[351212474,1738433433791,-500.0,0.00016573,2]
[351212475,1738433433802,-500.0,0.00016573,2]
[351212476,1738433433811,-500.0,0.00016573,2]
[351212477,1738433433820,-500.0,0.00016573,2]
[351212478,1738433433831,-500.0,0.00016573,2]
[351212479,1738433433841,-500.0,0.00016574,2]
[351212480,1738433433852,-500.0,0.00016574,2]
[351212481,1738433433863,-500.0,0.00016574,2]
[351212482,1738433433873,-500.0,0.00016574,2]
[351212483,1738433433884,-500.0,0.00016574,2]
[351212484,1738433433895,-500.0,0.00016574,2]
[351212485,1738433433906,-500.0,0.00016574,2]
[351212486,1738433433916,-500.0,0.00016574,2]
[351212487,1738433433925,-500.0,0.00016574,2]
[351212488,1738433433934,-367.77552332,0.00016574,2]
[351212489,1738433433945,-500.0,0.00016574,2]
[351212490,1738433433956,-500.0,0.00016574,2]
[351212491,1738433433965,-500.0,0.00016574,2]
[351212492,1738433433976,-42552.32155947,0.00016575,5]
[351212493,1738433433989,-500.0,0.00016575,2]
[351212494,1738433433999,-500.0,0.00016575,2]
[351212495,1738433434010,-387.4875314,0.00016575,2]
[351212496,1738433434020,-724.01,0.00016575,2]
[351212497,1738433434030,-500.0,0.00016575,2]
[351212498,1738433434045,-500.0,0.00016575,2]
[351212499,1738433434055,-500.0,0.00016575,2]
[351212500,1738433434064,-500.0,0.00016575,2]
[351212501,1738433434075,-500.0,0.00016575,2]
[351212502,1738433434085,-151.0,0.00016575,2]
[351212503,1738433434095,-500.0,0.00016575,2]
[351212504,1738433434105,-153.385732,0.00016575,2]
[351212505,1738433434114,-500.0,0.00016575,2]
[351212506,1738433434124,-151.0,0.00016575,2]
[351212507,1738433434134,-500.0,0.00016575,2]
[351212508,1738433434144,-491.09,0.00016575,2]
[351212509,1738433434154,-517.30202944,0.00016575,2]
[351212510,1738433434164,-501.03035887,0.00016575,2]
[351212511,1738433434174,-500.0,0.00016575,2]
[351212512,1738433434184,-500.0,0.00016575,2]
[351212513,1738433434194,-500.0,0.00016575,2]
[351212514,1738433434204,-500.0,0.00016575,2]
[351212515,1738433434215,-500.0,0.00016575,2]
[351212516,1738433434224,-500.0,0.00016575,2]
[351212517,1738433434234,-500.0,0.00016575,2]
[351212518,1738433434244,-500.0,0.00016575,2]
[351212519,1738433434254,-500.0,0.00016575,2]
[351212520,1738433434264,-500.0,0.00016575,2]
[351212521,1738433434274,-500.0,0.00016575,2]
[351212522,1738433434285,-500.0,0.00016575,2]
[351212523,1738433434295,-316.6,0.00016575,2]
[351212524,1738433434305,-500.0,0.00016575,2]
[351212525,1738433434316,-500.0,0.00016575,2]
[351212526,1738433434325,-500.0,0.00016575,2]
[351212527,1738433434335,-500.0,0.00016575,2]
[351212528,1738433434345,-500.0,0.00016575,2]
[351212529,1738433434355,-500.0,0.00016575,2]
[351212530,1738433434364,-500.0,0.00016575,2]
[351212531,1738433434375,-500.0,0.00016575,2]
[351212532,1738433434385,-544.49,0.00016575,2]
[351212533,1738433434395,-500.0,0.00016575,2]
[351212534,1738433434406,-500.0,0.00016575,2]
[351212535,1738433434534,-500.0,0.00016575,2]
[351212536,1738433434545,-500.0,0.00016575,2]
[351212537,1738433434555,-500.0,0.00016575,2]
[351212538,1738433434565,-424.13180254,0.00016575,2]
[351212539,1738433434575,-500.0,0.00016575,2]
[351212540,1738433434585,-500.0,0.00016575,2]
[351212541,1738433434595,-500.0,0.00016575,2]
[351212542,1738433434604,-151.0,0.00016575,2]
[351212543,1738433434614,-500.0,0.00016575,2]
[351212544,1738433434624,-500.0,0.00016575,2]
[351212545,1738433434634,-367.823349,0.00016575,2]
[351212546,1738433434644,-467.125275,0.00016575,2]
[351212547,1738433434653,-530.08375448,0.00016575,2]
[351212548,1738433434663,-500.0,0.00016575,2]
[351212549,1738433434672,-500.0,0.00016575,2]
[351212550,1738433434682,-151.0,0.00016575,2]
[351212551,1738433434692,-500.0,0.00016575,2]
[351212552,1738433434703,-562.29,0.00016575,2]
[351212553,1738433434712,-152.12719,0.00016575,2]
[351212554,1738433434722,-673.43,0.00016575,2]
[351212555,1738433434731,-206.66956,0.00016575,2]
[351212556,1738433434741,-206.66956,0.00016575,2]
[351212557,1738433434751,-151.0,0.00016575,2]
[351212558,1738433434760,-151.0,0.00016575,2]
[351212559,1738433434770,-500.0,0.00016575,2]
[351212560,1738433434779,-151.0,0.00016575,2]
[351212561,1738433434790,-151.0,0.00016575,2]
[351212562,1738433434799,-500.0,0.00016575,2]
[351212563,1738433434810,-500.0,0.00016575,2]
[351212564,1738433434819,-590.27,0.00016575,2]
[351212565,1738433434830,-500.0,0.00016575,2]
[351212566,1738433434839,-151.0,0.00016575,2]
[351212567,1738433434849,-500.0,0.00016575,2]
[351212568,1738433434860,-151.0,0.00016575,2]
[351212569,1738433434869,-4049.7,0.00016575,2]
[351212570,1738433434879,-154.704502,0.00016575,2]
[351212571,1738433434890,-500.0,0.00016575,2]
[351212572,1738433434902,-500.0,0.00016575,2]
[351212573,1738433434912,-500.0,0.00016575,2]
[351212574,1738433434922,-500.0,0.00016575,2]
[351212575,1738433434933,-500.0,0.00016575,2]
[351212576,1738433434944,-500.0,0.00016575,2]
[351212577,1738433434954,-1307.47,0.00016575,2]
[351212578,1738433434964,-500.0,0.00016575,2]
[351212579,1738433434974,-508.32934745,0.00016575,2]
[351212580,1738433434984,-247.02,0.00016575,2]
[351212581,1738433434994,-500.0,0.00016575,2]
[351212582,1738433435003,-500.0,0.00016575,2]
[351212583,1738433435013,-151.0,0.00016575,2]
[351212584,1738433435023,-500.0,0.00016575,2]
[351212585,1738433435033,-151.0,0.00016575,2]
[351212586,1738433435042,-500.0,0.00016575,2]
[351212587,1738433435052,-500.0,0.00016575,2]
[351212588,1738433435062,-500.0,0.00016575,2]
[351212589,1738433435071,-688.9,0.00016575,2]
[351212590,1738433435081,-500.0,0.00016575,2]
[351212591,1738433435091,-500.0,0.00016575,2]
[351212592,1738433435100,-151.0,0.00016575,2]
[351212593,1738433435110,-500.0,0.00016575,2]
[351212594,1738433435120,-500.0,0.00016575,2]
[351212595,1738433435129,-151.0,0.00016575,2]
[351212596,1738433435139,-151.0,0.00016575,2]
[351212597,1738433435148,-2568.32,0.00016575,2]
[351212598,1738433435158,-500.0,0.00016575,2]
[351212599,1738433435167,-870.53,0.00016575,2]
[351212600,1738433435177,-151.0,0.00016575,2]
[351212601,1738433435187,-504.67,0.00016575,2]
[351212602,1738433435196,-643.41,0.00016575,2]
[351212603,1738433435205,-500.0,0.00016575,2]
[351212604,1738433435215,-500.0,0.00016575,2]
[351212605,1738433435224,-208.66999419,0.00016575,2]
[351212606,1738433435234,-551.94751082,0.00016575,2]
[351212607,1738433435243,-500.0,0.00016575,2]
[351212608,1738433435252,-1307.92,0.00016575,2]
[351212609,1738433435262,-500.0,0.00016575,2]
[351212610,1738433435271,-4920.67,0.00016575,2]
[351212611,1738433435280,-500.0,0.00016575,2]
[351212612,1738433435291,-500.0,0.00016575,2]
[351212613,1738433435300,-500.0,0.00016575,2]
[351212614,1738433435309,-554.28,0.00016575,2]
[351212615,1738433435319,-575.26731293,0.00016575,2]
[351212616,1738433435328,-500.0,0.00016575,2]
[351212617,1738433435338,-500.0,0.00016575,2]
[351212618,1738433435347,-500.0,0.00016575,2]
[351212619,1738433435356,-500.0,0.00016575,2]
[351212620,1738433435366,-819.9,0.00016575,2]
[351212621,1738433435375,-546.36,0.00016575,2]
[351212622,1738433435386,-976.69,0.00016575,2]
[351212623,1738433435395,-14359.31,0.00016575,2]
[351212624,1738433435404,-616.01,0.00016575,2]
[351212625,1738433435414,-159.71939614,0.00016575,2]
[351212626,1738433435423,-4755.49,0.00016575,2]
[351212627,1738433435433,-500.0,0.00016575,2]
[351212628,1738433435442,-503.93,0.00016575,2]
[351212629,1738433435451,-500.0,0.00016575,2]
[351212630,1738433435461,-661.59,0.00016575,2]
[351212631,1738433435471,-500.0,0.00016575,2]
[351212632,1738433435480,-500.0,0.00016575,2]
[351212633,1738433435489,-596.48,0.00016575,2]
[351212634,1738433435499,-500.0,0.00016575,2]
[351212635,1738433435508,-500.0,0.00016575,2]
[351212636,1738433435518,-500.0,0.00016575,2]
[351212637,1738433435527,-500.0,0.00016575,2]
[351212638,1738433435539,-500.0,0.00016575,2]
[351212639,1738433435549,-512.5836352,0.00016575,2]
[351212640,1738433435559,-500.0,0.00016575,2]
[351212641,1738433435568,-928.36,0.00016575,2]
[351212642,1738433435578,-1567.55,0.000166,2]
[351212643,1738433435587,-990.91294527,0.000166,2]
[351212644,1738433435596,-500.0,0.00016669,2]
[351212645,1738433435606,-1000.0,0.00016688,2]
[351212646,1738433435615,-151.0,0.00016694,2]
[351212647,1738433435625,-151.0,0.00016694,2]
[351212648,1738433435635,-151.0,0.00016694,2]
[351212649,1738433435645,-151.0,0.00016694,2]
[351212650,1738433435654,-1000.0,0.00016703,2]
[351212651,1738433435664,-500.0,0.0001671,2]
[351212652,1738433435674,-1000.0,0.0001671,2]
[351212653,1738433435684,-151.0,0.00016711,2]
[351212654,1738433435694,-151.0,0.00016711,2]
[351212655,1738433435704,-151.0,0.00016711,2]
[351212656,1738433435714,-156.575497,0.00016711,2]
[351212657,1738433435723,-151.0,0.00016711,2]
[351212658,1738433435732,-252.06118461,0.00016711,2]
[351212659,1738433435742,-500.0,0.00016711,2]
[351212660,1738433435752,-151.0,0.00016711,2]
[351212661,1738433435761,-151.0,0.00016711,2]
[351212662,1738433435771,-151.0,0.00016711,2]
[351212663,1738433435780,-500.0,0.00016711,2]
[351212664,1738433435791,-151.0,0.00016711,2]
[351212665,1738433435801,-151.0,0.00016711,2]
[351212666,1738433435811,-500.0,0.00016711,2]
[351212667,1738433435820,-537.47493267,0.00016711,2]
[351212668,1738433435831,-500.0,0.00016711,2]
[351212669,1738433435840,-151.0,0.00016711,2]
[351212670,1738433435850,-151.0,0.00016711,2]
[351212671,1738433435859,-500.0,0.00016711,2]
[351212672,1738433435869,-151.0,0.00016711,2]
[351212673,1738433435879,-500.0,0.00016711,2]
[351212674,1738433435888,-500.0,0.00016711,2]
[351212675,1738433435901,-500.0,0.00016711,2]
[351212676,1738433435911,-500.0,0.00016711,2]
[351212677,1738433435921,-547.05,0.00016711,2]
[351212678,1738433435930,-151.0,0.00016711,2]
[351212679,1738433435940,-151.0,0.00016711,2]
[351212680,1738433435949,-151.0,0.00016711,2]
[351212681,1738433435959,-151.0,0.00016711,2]
[351212682,1738433435971,-500.0,0.00016712,2]
[351212683,1738433435981,-252.003566,0.00016712,2]
[351212684,1738433435991,-151.0,0.00016712,2]
[351212685,1738433436000,-500.0,0.00016712,2]
[351212686,1738433436010,-151.0,0.00016712,2]
[351212687,1738433436020,-151.0,0.00016712,2]
[351212688,1738433436030,-724.01,0.00016712,2]
[351212689,1738433436039,-500.0,0.00016712,2]
[351212690,1738433436049,-151.0,0.00016712,2]
[351212691,1738433436059,-491.95801542,0.00016712,2]
[351212692,1738433436068,-500.0,0.00016712,2]
[351212693,1738433436078,-531.60008817,0.00016712,2]
[351212694,1738433436087,-500.0,0.00016712,2]
[351212695,1738433436096,-151.0,0.00016712,2]
[351212696,1738433436106,-500.0,0.00016712,2]
[351212697,1738433436115,-500.0,0.00016712,2]
[351212698,1738433436125,-151.0,0.00016712,2]
[351212699,1738433436135,-506.86010962,0.00016712,2]
[351212700,1738433436144,-500.0,0.00016712,2]
[351212701,1738433436154,-340.81817734,0.00016712,2]
[351212702,1738433436164,-500.0,0.00016712,2]
[351212703,1738433436173,-500.0,0.00016712,2]
[351212704,1738433436183,-500.0,0.00016712,2]
[351212705,1738433436192,-500.0,0.00016712,2]
[351212706,1738433436202,-609.50933075,0.00016712,2]
[351212707,1738433436212,-151.0,0.00016712,2]
[351212708,1738433436222,-500.0,0.00016712,2]
[351212709,1738433436231,-151.0,0.00016712,2]
[351212710,1738433436241,-500.0,0.00016712,2]
[351212711,1738433436250,-500.0,0.00016712,2]
[351212712,1738433436259,-500.0,0.00016712,2]
[351212713,1738433436269,-500.0,0.00016712,2]
[351212714,1738433436278,-151.0,0.00016712,2]
[351212715,1738433436288,-500.0,0.00016712,2]
[351212716,1738433436298,-500.0,0.00016712,2]
[351212717,1738433436307,-500.0,0.00016712,2]
[351212718,1738433436317,-500.0,0.00016712,2]
[351212719,1738433436326,-500.0,0.00016712,2]
[351212720,1738433436336,-500.0,0.00016712,2]
[351212721,1738433436346,-500.0,0.00016712,2]
[351212722,1738433436356,-500.0,0.00016712,2]
[351212723,1738433436365,-500.0,0.00016712,2]
[351212724,1738433436374,-500.0,0.00016712,2]
[351212725,1738433436383,-500.0,0.00016712,2]
[351212726,1738433436393,-500.0,0.00016712,2]
[351212727,1738433436402,-500.0,0.00016712,2]
[351212728,1738433436411,-151.0,0.00016712,2]
[351212729,1738433436420,-151.0,0.00016712,2]
[351212730,1738433436429,-500.0,0.00016712,2]
[351212731,1738433436439,-151.0,0.00016712,2]
[351212732,1738433436448,-367.823349,0.00016712,2]
[351212733,1738433436457,-467.125275,0.00016712,2]
[351212734,1738433436467,-500.0,0.00016712,2]
[351212735,1738433436476,-500.0,0.00016712,2]
[351212736,1738433436485,-500.0,0.00016712,2]
[351212737,1738433436495,-615.4542181,0.00016712,2]
[351212738,1738433436504,-500.0,0.00016712,2]
[351212739,1738433436513,-500.0,0.00016712,2]
[351212740,1738433436523,-500.0,0.00016712,2]
[351212741,1738433436532,-469.506927,0.00016712,2]
[351212742,1738433436543,-151.0,0.00016712,2]
[351212743,1738433436552,-500.0,0.00016712,2]
[351212744,1738433436562,-562.29,0.00016712,2]
[351212745,1738433436572,-152.12719,0.00016712,2]
[351212746,1738433436673,-152.12719,0.00016712,2]
[351212747,1738433436683,-673.43,0.00016712,2]
[351212748,1738433436692,-206.66956,0.00016712,2]
[351212749,1738433436701,-206.66956,0.00016712,2]
[351212750,1738433436710,-206.66956,0.00016712,2]
[351212751,1738433436719,-206.66956,0.00016712,2]
[351212752,1738433436728,-151.0,0.00016712,2]
[351212753,1738433436744,-151.0,0.00016712,2]
[351212754,1738433436757,-151.0,0.00016712,2]
[351212755,1738433436767,-151.0,0.00016712,2]
[351212756,1738433436777,-465.10146851,0.00016712,2]
[351212757,1738433436786,-151.0,0.00016712,2]
[351212758,1738433436796,-151.0,0.00016712,2]
[351212759,1738433436805,-151.0,0.00016712,2]
[351212760,1738433436814,-281.152754,0.00016712,2]
[351212761,1738433436825,-500.0,0.00016712,2]
[351212762,1738433436835,-500.0,0.00016712,2]
[351212763,1738433436845,-590.27,0.00016712,2]
[351212764,1738433436855,-151.0,0.00016712,2]
[351212765,1738433436865,-500.0,0.00016712,2]
[351212766,1738433436874,-151.0,0.00016712,2]
[351212767,1738433436884,-151.0,0.00016712,2]
[351212768,1738433436893,-4049.7,0.00016712,2]
[351212769,1738433436905,-500.0,0.00016712,2]
[351212770,1738433436914,-500.0,0.00016712,2]
[351212771,1738433436923,-500.0,0.00016712,2]
[351212772,1738433436932,-414.93489705,0.00016712,2]
[351212773,1738433436942,-500.0,0.00016712,2]
[351212774,1738433436951,-500.0,0.00016712,2]
[351212775,1738433436960,-1307.47,0.00016712,2]